bitfinex-derivatives/quotes_BNBF0:USTF0_20250406
["timestamp","ask_amount","ask_price","bid_price","bid_amount"]
[1743904325631,0.3105369,592.38,591.39,0.2928745]
[1743904325831,0.3105369,592.38,591.23,0.2928745]
[1743904326025,0.33762682,592.37,591.24,0.2928745]
[1743904326228,0.33762682,592.37,591.23,0.2928745]
[1743904326427,0.63162768,592.37,591.24,0.2928745]
[1743904326626,0.63162768,592.37,591.23,0.2928745]
[1743904327830,0.63162768,592.37,591.21,0.2928745]
[1743904328030,0.63162768,592.37,591.2,1.26423726]
[1743904328229,0.63162768,592.37,591.21,0.29287657]
[1743904329133,0.33762682,592.37,591.21,0.29287657]
[1743904329433,0.29400583,592.36,591.21,0.29287657]
[1743904329734,0.33763822,592.35,591.21,0.29287657]
[1743904330135,0.33763822,592.35,591.19,0.29287657]
[1743904330330,0.33763822,592.35,591.2,0.29287657]
[1743904330535,0.33763822,592.35,591.19,0.29287657]
[1743904330730,0.33763822,592.35,591.21,0.29287657]
[1743904330935,0.31058351,592.34,591.22,0.29287657]
[1743904331136,0.33764962,592.33,591.17,0.29287657]
[1743904331336,0.33764962,592.33,591.16,1.26423726]
[1743904331540,0.33764962,592.33,591.17,0.29291575]
[1743904332332,0.31059481,592.32,591.18,0.29291575]
[1743904332536,0.33766102,592.31,591.1,0.29291575]
[1743904332732,0.31059481,592.3,591.1,0.29291575]
[1743904333237,0.33767812,592.28,591.05,0.29291575]
[1743904333436,0.33767812,592.28,591.11,0.29291575]
[1743904333636,0.31059481,592.27,591.12,0.29291575]
[1743904333833,0.33769523,592.25,591.05,0.29291575]
[1743904334036,0.31059481,592.24,591.05,0.29291575]
[1743904334237,0.33771233,592.22,591.02,0.29291575]
[1743904334432,0.31059481,592.21,591.02,0.29291575]
[1743904334642,0.33772944,592.19,591.02,0.29291575]
[1743904334834,0.33772944,592.19,591.01,1.26423726]
[1743904335033,0.31063656,592.18,591.02,0.2929732]
[1743904335236,0.33774085,592.17,591.02,0.2929732]
[1743904335534,0.31063656,592.16,591.02,0.2929732]
[1743904335730,0.33775225,592.15,591.02,0.2929732]
[1743904336537,0.33775225,592.15,590.94,0.2929732]
[1743904338139,0.33775225,592.15,590.93,1.26423726]
[1743904338335,0.33775225,592.15,590.95,0.29297329]
[1743904338538,0.33775225,592.15,590.93,1.26423726]
[1743904338539,0.29413008,592.14,590.96,0.29297329]
[1743904338733,0.33776366,592.13,590.94,0.29297329]
[1743904339844,0.33776366,592.13,590.93,0.29297329]
[1743904340041,0.33776366,592.13,590.94,0.29297329]
[1743904340243,0.685,592.12,590.93,0.29297329]
[1743904340541,0.685,592.12,590.94,0.29297329]
[1743904340742,0.685,592.12,590.93,0.29297329]
[1743904341041,0.33777507,592.11,590.94,0.29297329]
[1743904341238,0.33777507,592.11,590.85,1.26423726]
[1743904341239,0.33777507,592.11,590.93,0.29297329]
[1743904341435,0.33777507,592.11,590.95,0.29297329]
[1743904341639,0.33777507,592.11,590.96,0.29297329]
[1743904341837,0.33777507,592.11,590.92,0.29414748]
[1743904342044,0.33777507,592.11,590.93,0.29297566]
[1743904342442,0.29414748,592.1,590.93,0.29297566]
[1743904342842,0.33778648,592.09,590.93,0.29297566]
[1743904343539,0.33778648,592.09,590.94,0.29297566]
[1743904343738,0.33778648,592.09,590.85,0.29297566]
[1743904343943,0.33778648,592.09,590.86,0.29297566]
[1743904344144,0.33778648,592.09,590.85,0.29297566]
[1743904344343,0.33778648,592.09,590.86,0.29297566]
[1743904344643,0.33778648,592.09,590.87,0.29297566]
[1743904344843,0.33778648,592.09,590.88,0.29297566]
[1743904345043,0.33778648,592.09,590.82,0.29297566]
[1743904345243,0.33778648,592.09,590.83,0.29297566]
[1743904345445,0.29417483,592.08,590.84,0.29297566]
[1743904346046,0.33779789,592.07,590.84,0.29297566]
[1743904347345,0.33779789,592.07,590.58,0.29297566]
[1743904347548,0.29420965,592.06,590.83,0.29420965]
[1743904347746,0.29420965,592.06,590.84,0.29297566]
[1743904348046,0.3378093,592.05,590.85,0.29297566]
[1743904348346,0.3378093,592.05,590.86,0.29301702]
[1743904348547,0.3378093,592.05,590.56,0.63167862]
[1743904348747,0.3378093,592.05,590.57,0.63167289]
[1743904348948,0.3378093,592.05,590.58,0.33865014]
[1743904349147,0.3378093,592.05,590.59,0.29301672]
[1743904349346,0.3378093,592.05,590.6,0.33863867]
[1743904349547,0.3378093,592.05,590.61,0.29301672]
[1743904349747,0.3378093,592.05,590.62,0.3386272]
[1743904349946,0.3378093,592.05,590.63,0.29301672]
[1743904350149,0.3378093,592.05,590.64,0.33861573]
[1743904350350,0.3378093,592.05,590.65,0.29301672]
[1743904350551,0.29420094,592.04,590.66,0.33860427]
[1743904350850,0.33782071,592.03,590.67,0.29301672]
[1743904351049,0.33782071,592.03,590.68,0.3385928]
[1743904351245,0.33782071,592.03,590.69,0.29301672]
[1743904351449,0.33782071,592.03,590.69,0.63160379]
[1743904351649,0.33782071,592.03,590.7,0.29301672]
[1743904353347,0.33782071,592.03,590.71,0.29300648]
[1743904353553,0.29419473,592.02,590.72,0.29300648]
[1743904353848,0.33783213,592.01,590.73,0.29300648]
[1743904354052,0.33783213,592.01,590.74,0.29300648]
[1743904354450,0.33783213,592.01,590.75,0.29300648]
[1743904354648,0.33783213,592.01,590.76,0.29300648]
[1743904354852,0.33783213,592.01,590.77,0.29300648]
[1743904355052,0.33783213,592.01,590.84,1.26423726]
[1743904355254,0.33783213,592.01,590.85,0.29300648]
[1743904355547,0.33783213,592.01,590.86,0.29300648]
[1743904355753,0.33783213,592.01,590.87,0.29300648]
[1743904355954,0.33783213,592.01,590.88,0.29300648]
[1743904356155,0.33783213,592.01,590.89,0.29300648]
[1743904356354,0.33783213,592.01,590.85,0.29300648]
[1743904356654,0.29416613,592.0,590.86,0.29300648]
[1743904356855,0.33784354,591.99,590.87,0.29300648]
[1743904357155,0.33784354,591.99,590.88,0.29300648]
[1743904357354,0.33784354,591.99,590.89,0.29300648]
[1743904357555,0.33784354,591.99,590.86,1.26423726]
[1743904357755,0.33784354,591.99,590.87,0.29300648]
[1743904357955,0.33784354,591.99,590.88,0.29300648]
[1743904358157,0.33784354,591.99,590.89,0.29300648]
[1743904358456,0.33784354,591.99,590.87,0.29300648]
[1743904358657,0.33784354,591.99,590.88,0.29300648]
[1743904358956,0.33784354,591.99,590.89,0.29300648]
[1743904359167,0.33784354,591.99,590.87,0.29300648]
[1743904359352,0.33784354,591.99,590.9,0.29300648]
[1743904359558,0.29416613,591.98,590.91,0.29300648]
[1743904359853,0.33785495,591.97,590.92,0.29300648]
[1743904360060,0.33785495,591.97,590.89,1.26423726]
[1743904360253,0.33785495,591.97,590.9,0.29300551]
[1743904361657,0.33785495,591.97,590.88,1.26423726]
[1743904361858,0.33785495,591.97,590.89,0.29300551]
[1743904363459,0.29416115,591.96,590.92,1.26423726]
[1743904363651,0.29416115,591.96,590.93,0.29300551]
[1743904365055,0.33785495,591.97,590.93,0.29300551]
[1743904365359,0.2941624,591.95,590.93,0.29300551]
[1743904365755,0.9601624,591.95,590.93,0.29300551]
[1743904366155,0.9601624,591.95,590.96,1.26423726]
[1743904366356,0.9601624,591.95,590.97,0.29300551]
[1743904366661,0.9601624,591.95,590.96,1.26423726]
[1743904366963,0.9601624,591.95,590.97,0.29300695]
[1743904368157,0.666,591.95,590.97,0.29300695]
[1743904368364,0.666,591.95,590.96,1.26423726]
[1743904368557,0.29415991,591.94,590.97,0.2930096]
[1743904368956,0.29415991,591.94,591.0,1.26423726]
[1743904369260,0.29415991,591.94,591.01,0.2930096]
[1743904370862,0.29415991,591.94,591.04,1.26423726]
[1743904371157,0.666,591.95,591.05,0.2930096]
[1743904371457,0.29414997,591.93,591.05,0.2930096]
[1743904373462,0.29414997,591.93,590.96,0.2930096]
[1743904373661,0.29414997,591.93,590.97,0.2930096]
[1743904373962,0.29414997,591.93,590.98,0.2930096]
[1743904374154,0.33788349,591.92,590.96,0.2930096]
[1743904374357,0.63205708,591.92,590.97,0.2930096]
[1743904374557,0.63205708,591.92,590.96,0.2930096]
[1743904374860,0.63205708,591.92,590.97,0.2930096]
[1743904375062,0.63205708,591.92,590.96,0.2930096]
[1743904375358,0.63205708,591.92,590.97,0.29302832]
[1743904375562,0.63205708,591.92,590.93,0.29302832]
[1743904377359,0.29418105,591.91,590.93,0.29302832]
[1743904378064,0.29418105,591.91,590.88,0.29302832]
[1743904378276,0.29418105,591.91,590.89,0.29302832]
[1743904378563,0.29418105,591.91,590.88,0.29302832]
[1743904378763,0.29418105,591.91,590.89,0.29302832]
[1743904378965,0.29418105,591.91,590.88,0.29302832]
[1743904379162,0.29418105,591.91,590.87,1.26423726]
[1743904379362,0.29418105,591.91,590.88,0.29302565]
[1743904380271,0.33788349,591.92,590.89,0.29302627]
[1743904380467,0.29418727,591.9,590.9,0.29302627]
[1743904382867,0.29418727,591.9,590.89,1.26423726]
[1743904383064,0.33788349,591.92,590.91,0.29300109]
[1743904383264,0.33788349,591.92,590.92,0.29300109]
[1743904383465,0.29416737,591.89,590.9,0.29300109]
[1743904383965,0.29416737,591.89,590.94,1.26423726]
[1743904384168,0.29416737,591.89,590.95,0.29300109]
[1743904385970,0.29416737,591.89,590.97,1.26423726]
[1743904386170,0.33788349,591.92,590.97,1.26423726]
[1743904386466,0.29415742,591.88,590.98,0.2930005]
[1743904387872,0.29415742,591.88,590.97,1.26423726]
[1743904388073,0.29415742,591.88,590.98,0.29300572]
[1743904388469,0.29415742,591.88,590.96,0.29300572]
[1743904388671,0.29415742,591.88,590.97,0.29300572]
[1743904388869,0.29415742,591.88,590.96,0.29300572]
[1743904389072,0.29415742,591.88,590.97,0.29300572]
[1743904389268,0.33788349,591.92,590.96,0.29300572]
[1743904389468,0.29415991,591.87,590.97,0.29300572]
[1743904389773,0.542,591.86,590.98,0.29300572]
[1743904389972,0.542,591.86,590.96,0.29300572]
[1743904390172,0.542,591.86,590.97,0.29300572]
[1743904390373,0.542,591.86,590.9,0.29415991]
[1743904390374,0.542,591.86,590.96,0.29300572]
[1743904390668,0.542,591.86,590.97,0.29300572]
[1743904390873,0.568,591.85,590.94,0.29300572]
[1743904391072,0.568,591.85,590.95,0.29300572]
[1743904391373,0.568,591.85,590.94,0.29300572]
[1743904391577,0.568,591.85,590.95,0.29300572]
[1743904391776,0.568,591.85,590.96,0.29300572]
[1743904391976,0.568,591.85,590.95,1.26423726]
[1743904392172,0.568,591.85,590.96,0.29300572]
[1743904392476,0.29416737,591.84,590.96,0.29300572]
[1743904392876,0.29416737,591.84,590.95,1.26423726]
[1743904393085,0.29416737,591.84,590.96,0.29299977]
[1743904394079,0.29416737,591.84,591.03,1.26423726]
[1743904394375,0.29416737,591.84,591.04,0.29299977]
[1743904395075,0.568,591.85,591.04,0.29299977]
[1743904395479,0.29415618,591.83,591.04,0.29299977]
[1743904398079,0.568,591.85,591.04,0.29299977]
[1743904398390,0.29415618,591.82,591.04,0.29299977]
[1743904399081,0.29415618,591.82,591.06,1.26423726]
[1743904399279,0.29415618,591.82,591.07,0.29299977]
[1743904399681,0.29415618,591.82,591.06,1.26423726]
[1743904399876,0.29415618,591.82,591.07,0.29300249]
[1743904401084,0.568,591.85,591.07,0.29300249]
[1743904401288,0.568,591.85,591.05,0.29300249]
[1743904401501,0.29416737,591.81,591.05,0.29300249]
[1743904401989,0.29416737,591.81,591.04,1.26423726]
[1743904402289,0.29416737,591.81,591.05,0.29301961]
[1743904402891,0.29416737,591.81,591.04,1.26423726]
[1743904403086,0.29416737,591.81,590.96,1.26423726]
[1743904403087,0.29416737,591.81,591.05,0.2930193]
[1743904403286,0.29416737,591.81,591.03,0.2930193]
[1743904404089,0.568,591.85,591.03,0.2930193]
[1743904404385,0.29417234,591.8,591.03,0.2930193]
[1743904405490,0.29417234,591.8,591.05,1.26423726]
[1743904405690,0.29417234,591.8,591.06,0.2930193]
[1743904406285,0.29417234,591.8,591.05,1.26423726]
[1743904406490,0.29417234,591.8,591.06,0.29300655]
[1743904407091,0.568,591.85,591.06,0.29300655]
[1743904407386,0.568,591.85,591.11,1.26423726]
[1743904407591,0.568,591.85,591.12,0.29300655]
[1743904407886,0.568,591.85,591.11,1.26423726]
[1743904408092,0.568,591.85,591.12,0.29301696]
[1743904408486,0.29415991,591.84,591.12,0.29301696]
[1743904409392,0.29415991,591.84,591.1,0.29301696]
[1743904409586,0.29415991,591.84,591.11,0.29301696]
[1743904409786,0.29415991,591.84,591.1,0.29301696]
[1743904409990,0.29415991,591.84,591.11,0.29301696]
[1743904410189,0.568,591.85,591.1,0.29301696]
[1743904410594,0.29416364,591.83,591.1,0.29301696]
[1743904411393,0.29416364,591.83,591.09,1.26423726]
[1743904411590,0.29416364,591.83,591.1,0.29301696]
[1743904413099,0.568,591.85,591.1,0.29301696]
[1743904413597,0.29416364,591.82,591.06,1.26423726]
[1743904413794,0.29416364,591.82,591.07,0.29301726]
[1743904414697,0.29416364,591.82,591.06,1.26423726]
[1743904414897,0.29416364,591.82,591.07,0.29301694]
[1743904415991,0.29416364,591.82,591.02,0.29301694]
[1743904416297,0.542,591.86,591.01,1.26423726]
[1743904416498,0.542,591.86,591.02,0.29300133]
[1743904417100,0.577,591.85,591.02,0.29300133]
[1743904417495,0.87114499,591.85,591.02,0.29300133]
[1743904417894,0.87114499,591.85,591.01,1.26423726]
[1743904418100,0.87114499,591.85,591.05,1.26423726]
[1743904418303,0.87114499,591.85,591.06,0.29299953]
[1743904418595,0.87114499,591.85,591.05,1.26423726]
[1743904418793,0.87114499,591.85,591.06,0.29300016]
[1743904419096,0.577,591.85,591.06,0.29300016]
[1743904419508,0.29414375,591.84,591.06,0.29300016]
[1743904419902,0.29414375,591.84,591.07,0.29295776]
[1743904420101,0.29414375,591.84,591.06,0.29295776]
[1743904420400,0.29414375,591.84,591.07,0.29295776]
[1743904420601,0.29414375,591.84,591.06,0.29295776]
[1743904420801,0.29414375,591.84,591.07,0.29295776]
[1743904421101,0.29414375,591.84,590.97,0.29295776]
[1743904421301,0.29414375,591.84,590.98,0.29295776]
[1743904421503,0.29414375,591.84,590.99,0.29295776]
[1743904421703,0.29414375,591.84,590.97,0.29295776]
[1743904421900,0.29414375,591.84,590.98,0.29295776]
[1743904422101,0.577,591.85,590.99,0.29295776]
[1743904422303,0.577,591.85,591.16,1.26423726]
[1743904422503,0.577,591.85,591.17,0.29295776]
[1743904424803,0.577,591.85,591.16,1.26423726]
[1743904425001,0.577,591.85,591.17,0.29293657]
[1743904425605,0.577,591.85,591.18,0.29293657]
[1743904425806,0.577,591.85,591.19,0.29293657]
[1743904426007,0.577,591.85,591.14,0.29293657]
[1743904426208,0.577,591.85,591.15,0.29293657]
[1743904426404,0.577,591.85,591.13,1.26423726]
[1743904426608,0.577,591.85,591.14,0.29294216]
[1743904428207,0.542,591.86,591.14,0.29294216]
[1743904428611,0.542,591.86,591.05,0.29294216]
[1743904430918,0.542,591.86,591.06,0.29294216]
[1743904431117,0.542,591.86,591.04,0.29294216]
[1743904431310,0.542,591.86,590.75,0.29293851]
[1743904431514,0.43,591.85,591.04,0.29414624]
[1743904431715,0.43,591.85,591.05,0.29293851]
[1743904431915,0.43,591.85,590.77,0.29293851]
[1743904432117,0.43,591.85,590.78,0.631474]
[1743904432323,0.43,591.85,590.79,0.63146827]
[1743904432518,0.43,591.85,590.8,0.63146254]
[1743904432717,0.43,591.85,590.81,0.63145681]
[1743904433018,0.43,591.85,590.82,0.63145108]
[1743904433217,0.43,591.85,590.83,0.33850684]
[1743904433417,0.43,591.85,590.84,0.29293542]
[1743904433613,0.43,591.85,590.85,0.33849538]
[1743904433813,0.43,591.85,590.86,0.29293542]
[1743904434014,0.43,591.85,590.87,0.33848393]
[1743904434218,0.43,591.85,590.88,0.29293542]
[1743904434513,0.43,591.85,590.89,0.33847247]
[1743904434719,0.43,591.85,590.9,0.29293542]
[1743904434914,0.43,591.85,590.91,0.33846101]
[1743904435217,0.43,591.85,590.92,0.29293542]
[1743904435413,0.529,591.84,590.93,0.33844956]
[1743904435613,0.529,591.84,590.94,0.29293542]
[1743904436318,0.529,591.84,590.95,0.3384381]
[1743904436623,0.529,591.84,590.96,0.29293542]
[1743904436819,0.529,591.84,590.97,0.33842665]
[1743904437119,0.529,591.84,590.98,0.29293542]
[1743904440215,0.529,591.84,590.99,0.29290637]
[1743904440416,0.529,591.84,590.98,0.29290637]
[1743904440620,0.529,591.84,590.99,0.29290637]
[1743904440814,0.529,591.84,590.98,0.29290637]
[1743904441013,0.529,591.84,590.99,0.29290637]
[1743904441314,0.529,591.84,591.0,0.29290637]
[1743904441513,0.529,591.84,590.98,0.29290637]
[1743904444525,0.529,591.84,591.0,1.26423726]
[1743904444718,0.529,591.84,591.01,0.29290637]
[1743904446419,0.29415494,591.83,591.02,0.2929882]
[1743904446723,0.29415494,591.83,591.03,0.2929882]
[1743904446922,0.29415494,591.83,591.01,0.2929882]
[1743904447125,0.29415494,591.83,590.97,0.33842665]
[1743904447126,0.29415494,591.83,591.02,0.2929882]
[1743904447328,0.29415494,591.83,590.98,0.2929882]
[1743904447928,0.29415494,591.83,590.97,0.33842665]
[1743904448120,0.29415494,591.83,590.98,0.29298561]
[1743904449228,0.529,591.84,590.99,0.29297845]
[1743904449428,0.29415991,591.82,590.98,0.29297845]
[1743904449628,0.29415991,591.82,590.99,0.29297845]
[1743904449828,0.29415991,591.82,591.0,0.29297731]
[1743904450028,0.29415991,591.82,590.98,0.29297731]
[1743904450225,0.29415991,591.82,590.99,0.29297731]
[1743904450428,0.29415991,591.82,591.0,0.29297731]
[1743904450632,0.29415991,591.82,590.98,0.29297731]
[1743904450833,0.29415991,591.82,590.99,0.29297731]
[1743904451035,0.29415991,591.82,590.98,0.29297731]
[1743904451336,0.529,591.84,590.98,0.29297731]
[1743904452936,0.529,591.84,590.97,0.33842665]
[1743904453131,0.529,591.84,590.98,0.29292251]
[1743904454137,0.529,591.84,590.98,0.63134343]
[1743904454431,0.59,591.83,590.99,0.29292251]
[1743904456330,0.59,591.83,590.98,0.33842092]
[1743904456530,0.59,591.83,590.99,0.29288868]
[1743904457932,0.59,591.83,590.98,0.33842092]
[1743904458137,0.59,591.83,590.99,0.29289277]
[1743904458633,0.59,591.83,590.98,0.33842092]
[1743904458837,0.59,591.83,590.99,0.29289275]
[1743904459436,0.59,591.83,591.0,0.29288293]
[1743904459634,0.59,591.83,590.99,0.29288293]
[1743904459834,0.59,591.83,591.0,0.29288284]
[1743904460041,0.59,591.83,590.99,0.29288284]
[1743904460242,0.59,591.83,591.0,0.29288284]
[1743904460438,0.59,591.83,590.99,0.29288284]
[1743904460737,0.59,591.83,591.0,0.29288284]
[1743904460939,0.59,591.83,591.01,0.29288284]
[1743904461138,0.59,591.83,590.98,0.33842092]
[1743904461139,0.59,591.83,590.99,0.29288284]
[1743904461342,0.59,591.83,590.98,0.33842092]
[1743904461538,0.59,591.83,590.99,0.29288545]
[1743904461737,0.59,591.83,591.0,0.33840947]
[1743904461943,0.59,591.83,591.01,0.29288545]
[1743904462136,0.59,591.83,591.02,0.33839802]
[1743904462342,0.59,591.83,591.03,0.29288545]
[1743904462542,0.59,591.83,591.03,0.63127774]
[1743904462842,0.59,591.83,591.04,0.29288545]
[1743904463046,0.59,591.83,591.03,0.33839229]
[1743904463241,0.59,591.83,591.04,0.29285905]
[1743904465247,0.59,591.83,591.05,0.33838084]
[1743904465445,0.59,591.83,591.06,0.29285905]
[1743904465746,0.59,591.83,591.06,0.63123417]
[1743904465946,0.59,591.83,591.07,0.29285905]
[1743904466546,0.59,591.83,591.07,0.63122844]
[1743904466747,0.59,591.83,591.08,0.63122272]
[1743904467050,0.59,591.83,591.09,0.63121699]
[1743904467242,0.59,591.83,591.1,0.29285905]
[1743904473151,0.59,591.83,591.11,0.63116959]
[1743904473449,0.59,591.83,591.12,0.29282309]
[1743904473651,0.59,591.83,591.11,0.3383465]
[1743904473851,0.59,591.83,591.12,0.29282309]
[1743904476351,0.59,591.83,591.13,0.29282323]
[1743904476651,0.59,591.83,591.14,0.29282323]
[1743904476849,0.59,591.83,591.12,0.29282323]
[1743904477051,0.59,591.83,591.13,0.29282323]
[1743904477248,0.59,591.83,591.12,0.29282323]
[1743904477848,0.59,591.83,591.11,0.3383465]
[1743904478046,0.59,591.83,591.12,0.29283232]
[1743904482858,0.59,591.83,591.11,0.6324132]
[1743904483053,0.59,591.83,591.12,0.29282128]
[1743904484757,0.59,591.83,591.13,0.29282098]
[1743904484955,0.59,591.83,591.12,0.29282098]
[1743904485960,0.59,591.83,591.12,1.55705824]
[1743904486259,0.59,591.83,591.12,1.26423726]
[1743904486457,0.59,591.83,591.13,0.29282098]
[1743904487762,0.59,591.83,591.12,1.26423726]
[1743904487971,0.59,591.83,591.13,0.2928204]
[1743904488159,0.59,591.83,591.18,1.26423726]
[1743904488357,0.59,591.83,591.19,0.2928204]
[1743904490862,0.59,591.83,591.15,0.2928204]
[1743904491058,0.59,591.83,591.16,0.2928204]
[1743904491362,0.59,591.83,591.17,0.29280967]
[1743904491562,0.59,591.83,591.18,0.29280967]
[1743904491762,0.59,591.83,591.15,0.29280967]
[1743904491964,0.59,591.83,591.16,0.29280967]
[1743904492162,0.59,591.83,591.15,0.29280967]
[1743904492363,0.59,591.83,591.16,0.29280967]
[1743904492662,0.59,591.83,591.17,0.29280967]
[1743904492864,0.59,591.83,591.15,0.29280967]
[1743904493657,0.59,591.83,591.14,0.29280967]
[1743904494663,1.197,591.83,591.15,0.29282651]
[1743904494962,1.197,591.83,591.16,0.29282651]
[1743904495159,1.197,591.83,591.24,1.26423726]
[1743904495358,1.197,591.83,591.25,0.29282651]
[1743904496163,1.197,591.83,591.24,1.26423726]
[1743904496356,1.197,591.83,591.25,0.29282682]
[1743904497666,1.197,591.83,591.27,1.26423726]
[1743904497962,1.197,591.83,591.28,0.29282656]
[1743904499367,1.197,591.83,591.29,1.26423726]
[1743904499567,1.197,591.83,591.3,0.29282656]
[1743904500968,1.197,591.83,591.29,1.26423726]
[1743904501169,1.197,591.83,591.3,0.29286577]
[1743904502170,1.197,591.83,591.18,0.29286577]
[1743904502370,1.197,591.83,591.19,0.29286577]
[1743904502565,1.197,591.83,591.18,0.29286577]
[1743904502765,1.197,591.83,591.19,0.29286577]
[1743904502970,1.197,591.83,591.18,0.29286577]
[1743904503173,1.197,591.83,591.19,0.29286577]
[1743904503475,1.197,591.83,591.2,0.29286577]
[1743904503666,1.197,591.83,591.18,0.29286577]
[1743904503867,1.197,591.83,591.19,0.29286577]
[1743904504071,1.197,591.83,591.18,0.29286577]
[1743904504475,1.197,591.83,591.16,0.29286577]
[1743904506367,1.197,591.83,591.12,0.29286577]
[1743904506568,1.197,591.83,591.15,0.29409403]
[1743904506769,1.197,591.83,591.16,0.29286577]
[1743904507274,1.197,591.83,591.15,0.29409403]
[1743904507474,1.197,591.83,591.16,0.29286966]
[1743904509370,1.197,591.83,591.12,0.29286966]
[1743904509573,1.197,591.83,591.15,0.29409403]
[1743904509774,1.197,591.83,591.16,0.29286966]
[1743904510576,1.197,591.83,591.15,0.29409403]
[1743904510776,1.197,591.83,591.16,0.29287049]
[1743904511577,1.197,591.83,591.35,1.26423726]
[1743904511776,1.197,591.83,591.36,0.29287049]
[1743904512879,1.197,591.83,591.35,1.26423726]
[1743904513178,1.197,591.83,591.36,0.29286691]
[1743904513979,1.197,591.83,591.35,0.29286691]
[1743904515681,1.197,591.83,591.36,0.29286625]
[1743904515881,1.197,591.83,591.34,0.29286625]
[1743904516080,1.197,591.83,591.35,0.29286625]
[1743904516279,1.197,591.83,591.34,0.29286625]
[1743904517781,1.197,591.83,591.34,1.55710351]
[1743904517981,1.197,591.83,591.35,0.29286625]
[1743904520182,1.197,591.83,591.22,0.29286625]
[1743904522289,1.197,591.83,591.21,1.26423726]
[1743904522588,1.197,591.83,591.22,0.29293072]
[1743904522788,1.197,591.83,591.12,0.29293072]
[1743904525590,1.197,591.83,591.07,0.29411392]
[1743904525790,1.197,591.83,591.12,0.29293338]
[1743904527191,1.197,591.83,590.98,1.26423726]
[1743904527384,1.197,591.83,591.12,0.29293257]
[1743904527993,1.197,591.83,591.07,0.29411392]
[1743904530189,1.197,591.83,590.67,1.26423726]
[1743904530493,1.197,591.83,591.02,0.29413132]
[1743904533195,1.197,591.83,590.64,1.26423726]
[1743904533496,1.197,591.83,591.02,0.29413753]
[1743904536200,1.197,591.83,590.71,1.26423726]
[1743904537498,1.197,591.83,591.02,0.29417607]
[1743904537898,1.197,591.83,591.12,0.29296583]
[1743904538902,1.197,591.83,591.02,0.29417607]
[1743904539103,1.197,591.83,591.12,0.29296644]
[1743904540503,1.197,591.83,591.02,0.29412635]
[1743904540803,1.197,591.83,591.12,0.29296583]
[1743904545402,1.197,591.83,590.9,1.26423726]
[1743904545706,0.29413878,591.82,591.12,0.2929717]
[1743904546906,0.29413878,591.82,590.97,0.29413878]
[1743904547107,0.29413878,591.82,591.12,0.29297464]
[1743904548206,1.51618276,592.66,591.12,0.29297464]
[1743904548402,0.337473,592.64,591.12,0.29297464]
[1743904548606,0.29405055,591.81,590.92,0.29297464]
[1743904548806,0.337473,592.64,590.93,0.29297464]
[1743904549001,0.3106599,592.63,590.94,0.29299638]
[1743904549206,0.33749008,592.61,590.92,0.29299638]
[1743904549407,0.33749008,592.61,590.94,1.26423726]
[1743904549608,0.93966131,592.6,590.95,0.29299777]
[1743904549809,0.33750717,592.58,590.95,0.29299777]
[1743904550109,0.31066131,592.57,590.95,0.29299777]
[1743904550408,0.33752425,592.55,590.95,0.29299777]
[1743904550609,0.31066131,592.54,590.95,0.29299777]
[1743904550810,0.33754134,592.52,590.95,0.29299777]
[1743904551010,0.31066131,592.51,590.95,0.29299777]
[1743904551210,0.33755843,592.49,590.95,0.29299777]
[1743904551506,0.31066131,592.48,590.95,0.29299777]
[1743904551712,0.33757553,592.46,590.95,0.29299777]
[1743904551914,0.31065985,592.45,590.96,0.29299634]
[1743904552112,0.33759262,592.43,590.93,0.29299634]
[1743904552412,0.31065985,592.42,590.94,0.29299634]
[1743904552614,0.33760972,592.4,590.93,0.29299634]
[1743904552913,0.31065985,592.39,590.93,0.29299634]
[1743904553111,0.33762682,592.37,590.93,0.29299634]
[1743904553412,0.31065985,592.36,590.93,0.29299634]
[1743904553715,0.33764392,592.34,590.93,0.29299634]
[1743904553910,0.31065985,592.33,590.93,0.29299634]
[1743904554112,0.33766102,592.31,590.93,0.29299634]
[1743904554309,0.31065985,592.3,590.93,0.29299634]
[1743904554613,0.33767812,592.28,590.95,1.26423726]
[1743904554813,0.31065985,592.27,590.96,0.29299634]
[1743904555014,0.33769523,592.25,590.96,0.29299634]
[1743904555209,0.31065985,592.24,590.96,0.29299634]
[1743904555412,0.33771233,592.22,590.96,0.29299634]
[1743904555612,0.31065985,592.21,590.96,0.29299634]
[1743904555813,0.33772944,592.19,590.96,0.29299634]
[1743904556015,0.31065985,592.18,590.96,0.29299634]